[Event "3rd Memorial Warakomska 2019"]
[Site "Suwalki"]
[Date "2019.08.09"]
[Round "6.42"]
[White "Chan, Kim Yew"]
[Black "Oborski, Artur"]
[Result "1/2-1/2"]
[ECO "A01"]
[WhiteElo "2276"]
[BlackElo "1969"]
[Annotator "NA"]
[PlyCount "185"]
[EventDate "2019.08.05"]
[EventType "swiss"]
[EventCountry "POL"]
[SourceTitle "playchess.com"]
[Source "ChessBase"]
[SourceQuality "1"]
[TimeControl "40/5400+30:1800+30"]

1. b3 {[%emt 0:03:54]} d6 {[%emt 0:00:00]} 2. Bb2 {[%emt 0:00:19]} e5 {[%emt 0:00:00]} 3. c4 {[%emt 0:00:33]} g6 {[%emt 0:00:31]} 4. d4 {[%emt 0:03:09]} Bg7 {[%emt 0:00:09]} 5. dxe5 {[%emt 0:00:57]} Nd7 {[%emt 0:00:52]} 6. Nf3 {[%emt 0:02:16]} dxe5 {[%emt 0:01:15]} 7. g3 {[%emt 0:00:20]} Ne7 {[%emt 0:00:37]} 8. Bg2 {[%emt 0:00:45]} O-O {[%emt 0:00:16]} 9. Qc1 {[%emt 0:02:07]} Nc6 {[%emt 0:02:33]} 10. O-O {[%emt 0:02:37]} e4 {[%emt 0:07:42]} 11. Ne1 {[%emt 0:08:12]} f5 {[%emt 0:04:43]} 12. Bxg7 {[%emt 0:01:31]} Kxg7 {[%emt 0:00:07]} 13. Qb2+ {[%emt 0:00:54]} Nf6 {[%emt 0:03:04]} 14. Nc3 {[%emt 0:04:08]} Be6 {[%emt 0:00:55]} 15. Rd1 {[%emt 0:07:24]} Qe7 {[%emt 0:00:47]} 16. f3 {[%emt 0:04:50]} Qc5+ {[%emt 0:05:50]} 17. Kh1 {[%emt 0:01:07]} Qe5 {[%emt 0:01:32]} 18. f4 {[%emt 0:12:38]} Qc5 {[%emt 0:01:50]} 19. Nd5 {[%emt 0:01:28]} Bxd5 {[%emt 0:03:34]} 20. Rxd5 {[%emt 0:01:53]} Qe7 {[%emt 0:00:18]} 21. Nc2 {[%emt 0:00:44]} Kf7 {[%emt 0:00:28]} 22. Rdd1 {[%emt 0:04:12]} Rad8 {[%emt 0:08:22]} 23. b4 {[%emt 0:04:05]} Rxd1 {[%emt 0:01:57]} 24. Rxd1 {[%emt 0:00:02]} Rd8 {[%emt 0:00:11]} 25. Rxd8 {[%emt 0:10:15]} Qxd8 {[%emt 0:00:07]} 26. Qc1 {[%emt 0:02:53]} Qd7 {[%emt 0:06:51]} 27. Qe1 {[%emt 0:04:47]} Nd4 {[%emt 0:12:38]} 28. Ne3 {[%emt 0:01:25]} Ne6 {[%emt 0:02:47]} 29. Qc3 {[%emt 0:02:45]} Qd4 {[%emt 0:03:39]} 30. Qxd4 {[%emt 0:00:02]} Nxd4 {[%emt 0:00:07]} 31. Bf1 {[%emt 0:00:01]} h5 {[%emt 0:01:39]} 32. h3 {[%emt 0:02:52]} Ke6 {[%emt 0:04:36]} 33. Kg2 {[%emt 0:00:13]} c6 {[%emt 0:01:40]} 34. Kf2 {[%emt 0:01:11]} b6 {[%emt 0:04:58]} 35. Ke1 {[%emt 0:01:14]} c5 {[%emt 0:05:23]} 36. bxc5 {[%emt 0:01:43]} bxc5 {[%emt 0:00:23]} 37. Kd2 {[%emt 0:00:26]} Kd6 {[%emt 0:00:47]} 38. Ng2 {[%emt 0:01:15]} Nc6 {[%emt 0:03:03]} 39. e3 {[%emt 0:00:59]} Ne7 {[%emt 0:01:36]} 40. Kc3 {[%emt 0:00:00]} Kc6 {[%emt 0:00:00]} 41. Be2 {[%emt 0:03:54]} Kb6 {[%emt 0:01:24]} 42. Bd1 {[%emt 0:00:31]} Ka5 {[%emt 0:00:52]} 43. Ne1 {[%emt 0:01:09]} Nc6 {[%emt 0:02:15]} 44. a3 {[%emt 0:00:32]} Ne7 {[%emt 0:00:28]} 45. Nc2 {[%emt 0:00:32]} Nc6 {[%emt 0:01:31]} 46. Na1 {[%emt 0:00:24]} Nd8 {[%emt 0:01:11]} 47. Nb3+ {[%emt 0:00:06]} Kb6 {[%emt 0:00:05]} 48. Nd2 {[%emt 0:00:32]} Ka5 {[%emt 0:00:36]} 49. Kb3 {[%emt 0:02:49]} a6 {[%emt 0:03:30]} 50. Nb1 {[%emt 0:00:26]} Kb6 {[%emt 0:01:23]} 51. Nc3 {[%emt 0:00:18]} Kc6 {[%emt 0:00:11]} 52. Kb2 {[%emt 0:03:05]} Kd6 {[%emt 0:04:05]} 53. Ne2 {[%emt 0:01:19]} Nb7 {[%emt 0:01:23]} 54. Kc3 {[%emt 0:00:09]} Nd8 {[%emt 0:00:57]} 55. Ba4 {[%emt 0:00:25]} Nb7 {[%emt 0:00:30]} 56. Nc1 {[%emt 0:00:11]} Na5 {[%emt 0:00:44]} 57. Bd1 {[%emt 0:00:28]} Nb7 {[%emt 0:00:19]} 58. Kd2 {[%emt 0:00:12]} Na5 {[%emt 0:00:38]} 59. Be2 {[%emt 0:00:02]} Nd7 {[%emt 0:01:02]} 60. Kc3 {[%emt 0:01:01]} Nf6 {[%emt 0:01:33]} 61. Bd1 {[%emt 0:02:01]} Nb7 {[%emt 0:00:12]} 62. Nb3 {[%emt 0:00:13]} Kc6 {[%emt 0:00:17]} 63. Nd2 {[%emt 0:01:10]} Kd6 {[%emt 0:00:07]} 64. Nf1 {[%emt 0:00:25]} Kc6 {[%emt 0:06:51]} 65. Nd2 {[%emt 0:01:35]} Kd6 {[%emt 0:00:10]} 66. Be2 {[%emt 0:00:05]} Nd8 {[%emt 0:00:38]} 67. Kc2 {[%emt 0:00:12]} Kc6 {[%emt 0:01:55]} 68. Nb1 {[%emt 0:00:10]} Nb7 {[%emt 0:01:03]} 69. Nc3 {[%emt 0:00:19]} Kd6 {[%emt 0:00:59]} 70. Nd1 {[%emt 0:00:06]} Nd8 {[%emt 0:01:15]} 71. Nf2 {[%emt 0:00:37]} Nf7 {[%emt 0:02:11]} 72. g4 {[%emt 0:03:16]} hxg4 {[%emt 0:05:02]} 73. hxg4 {[%emt 0:00:08]} fxg4 {[%emt 0:01:18]} 74. Nxg4 {[%emt 0:02:30]} Nh5 {[%emt 0:00:22]} 75. Nf2 {[%emt 0:01:47]} Ng3 {[%emt 0:00:22]} 76. Bg4 {[%emt 0:01:17]} Nh6 {[%emt 0:01:27]} 77. Bc8 {[%emt 0:00:48]} Nhf5 {[%emt 0:00:39]} 78. Kd2 {[%emt 0:04:06]} Nf1+ {[%emt 0:00:19]} 79. Ke2 {[%emt 0:00:16]} N1g3+ {[%emt 0:00:05]} 80. Kd2 {[%emt 0:00:24]} Nf1+ {[%emt 0:00:06]} 81. Ke1 {[%emt 0:00:50]} N1xe3 {[%emt 0:01:26]} 82. Nxe4+ {[%emt 0:00:02]} Kc6 {[%emt 0:00:13]} 83. Bxa6 {[%emt 0:00:35]} Ng2+ {[%emt 0:00:26]} 84. Kf2 {[%emt 0:00:34]} Nxf4 {[%emt 0:00:06]} 85. Bb5+ {[%emt 0:00:19]} Kb6 {[%emt 0:00:07]} 86. Nc3 {[%emt 0:01:02]} Nd6 {[%emt 0:00:44]} 87. Na4+ {[%emt 0:01:00]} Ka5 {[%emt 0:00:07]} 88. Nxc5 {[%emt 0:00:06]} Nxb5 {[%emt 0:00:07]} 89. cxb5 {[%emt 0:00:07]} Kxb5 {[%emt 0:00:04]} 90. Nd7 {[%emt 0:00:13]} Ka4 {[%emt 0:00:06]} 91. Kf3 {[%emt 0:00:05]} g5 {[%emt 0:00:04]} 92. Kg4 {[%emt 0:00:09]} Kxa3 {[%emt 0:00:04]} 93. Kxg5 {[%emt 0:00:06]} 1/2-1/2

[Event "3rd Memorial Warakomska 2019"]
[Site "Suwalki"]
[Date "2019.08.09"]
[Round "6.43"]
[White "Bai, Adelard"]
[Black "Kokoszczynski, Jan"]
[Result "1/2-1/2"]
[ECO "D30"]
[WhiteElo "2113"]
[BlackElo "2238"]
[Annotator "NA"]
[PlyCount "63"]
[EventDate "2019.08.05"]
[EventType "swiss"]
[EventCountry "POL"]
[SourceTitle "playchess.com"]
[Source "ChessBase"]
[SourceQuality "1"]
[TimeControl "40/5400+30:1800+30"]

1. d4 {[%emt 0:00:00]} d5 {[%emt 0:00:00]} 2. c4 {[%emt 0:00:00]} e6 {[%emt 0:00:00]} 3. Nf3 {[%emt 0:00:02]} a6 {[%emt 0:01:16]} 4. cxd5 {[%emt 0:11:32]} exd5 {[%emt 0:00:08]} 5. Nc3 {[%emt 0:00:17]} Nf6 {[%emt 0:00:12]} 6. Bg5 {[%emt 0:01:22]} Be6 {[%emt 0:00:23]} 7. e3 {[%emt 0:00:39]} Nbd7 {[%emt 0:03:36]} 8. Bd3 {[%emt 0:03:08]} Bd6 {[%emt 0:03:15]} 9. O-O {[%emt 0:01:32]} O-O {[%emt 0:03:46]} 10. Rc1 {[%emt 0:00:48]} c6 {[%emt 0:02:31]} 11. Bb1 {[%emt 0:03:04]} h6 {[%emt 0:05:51]} 12. Bh4 {[%emt 0:02:18]} Qc7 {[%emt 0:00:40]} 13. Bg3 {[%emt 0:15:47]} Rae8 {[%emt 0:08:58]} 14. Qd3 {[%emt 0:09:33]} Bxg3 {[%emt 0:03:06]} 15. hxg3 {[%emt 0:00:12]} Qd6 {[%emt 0:00:30]} 16. Nd2 {[%emt 0:05:07]} Rd8 {[%emt 0:04:35]} 17. a3 {[%emt 0:02:21]} c5 {[%emt 0:04:30]} 18. dxc5 {[%emt 0:08:20]} Nxc5 {[%emt 0:00:25]} 19. Qc2 {[%emt 0:00:14]} Rc8 {[%emt 0:03:56]} 20. Nf3 {[%emt 0:04:16]} Rfd8 {[%emt 0:05:57]} 21. Nd4 {[%emt 0:01:21]} Qe7 {[%emt 0:01:45]} 22. Ba2 {[%emt 0:03:10]} b5 {[%emt 0:08:24]} 23. Qe2 {[%emt 0:04:27]} Rc7 {[%emt 0:04:30]} 24. Nxe6 {[%emt 0:03:06]} fxe6 {[%emt 0:03:11]} 25. Rfd1 {[%emt 0:03:16]} Rdc8 {[%emt 0:00:36]} 26. Nb1 {[%emt 0:03:02]} Nce4 {[%emt 0:04:21]} 27. Qe1 {[%emt 0:00:55]} Qd6 {[%emt 0:03:52]} 28. Nd2 {[%emt 0:01:36]} Qe5 {[%emt 0:02:15]} 29. Nxe4 {[%emt 0:01:42]} Nxe4 {[%emt 0:00:07]} 30. Rxc7 {[%emt 0:00:46]} Qxc7 {[%emt 0:08:50]} 31. Bb1 {[%emt 0:00:28]} Qe5 {[%emt 0:06:02]} 32. Rc1 1/2-1/2

[Event "3rd Memorial Warakomska 2019"]
[Site "Suwalki"]
[Date "2019.08.09"]
[Round "6.44"]
[White "Korbal, Arkadiusz"]
[Black "Wolanski, Michal"]
[Result "1-0"]
[ECO "B27"]
[WhiteElo "2178"]
[BlackElo "2007"]
[Annotator "NA"]
[PlyCount "63"]
[EventDate "2019.08.05"]
[EventType "swiss"]
[EventCountry "POL"]
[SourceTitle "playchess.com"]
[Source "ChessBase"]
[SourceQuality "1"]
[TimeControl "40/5400+30:1800+30"]

1. e4 {[%emt 0:00:00]} c5 {[%emt 0:00:00]} 2. Nf3 {[%emt 0:00:00]} g6 {[%emt 0:00:00]} 3. d4 {[%emt 0:00:00]} cxd4 {[%emt 0:00:00]} 4. Qxd4 {[%emt 0:00:00]} Nf6 {[%emt 0:00:00]} 5. Nc3 {[%emt 0:00:19]} Bg7 {[%emt 0:00:46]} 6. e5 {[%emt 0:00:48]} Nc6 {[%emt 0:00:14]} 7. Qa4 {[%emt 0:00:18]} Ng8 {[%emt 0:05:20]} 8. Bf4 {[%emt 0:00:56]} Nh6 {[%emt 0:00:54]} 9. h3 {[%emt 0:01:20]} O-O {[%emt 0:01:16]} 10. O-O-O {[%emt 0:02:20]} f6 {[%emt 0:10:21]} 11. Bc4+ {[%emt 0:14:27]} Kh8 {[%emt 0:03:15]} 12. e6 {[%emt 0:09:06]} d6 {[%emt 0:04:23]} 13. g4 {[%emt 0:04:16]} Ne5 {[%emt 0:04:48]} 14. Nxe5 {[%emt 0:01:19]} fxe5 {[%emt 0:01:14]} 15. Be3 {[%emt 0:00:09]} a6 {[%emt 0:07:02]} 16. Bd5 {[%emt 0:03:50]} Rb8 {[%emt 0:01:11]} 17. h4 {[%emt 0:03:03]} b5 {[%emt 0:02:22]} 18. Qe4 {[%emt 0:00:12]} b4 {[%emt 0:08:56]} 19. Ne2 {[%emt 0:00:15]} Qc7 {[%emt 0:03:01]} 20. h5 {[%emt 0:03:12]} g5 {[%emt 0:00:15]} 21. Bxg5 {[%emt 0:04:16]} Bb7 {[%emt 0:04:19]} 22. Be3 {[%emt 0:00:39]} Bxd5 {[%emt 0:00:51]} 23. Rxd5 {[%emt 0:00:28]} Rfc8 {[%emt 0:09:41]} 24. g5 {[%emt 0:02:47]} Ng4 {[%emt 0:00:37]} 25. h6 {[%emt 0:00:43]} Bxh6 {[%emt 0:08:48]} 26. Rc5 dxc5 {[%emt 0:07:57]} 27. Qxg4 {[%emt 0:05:17]} Rg8 {[%emt 0:02:01]} 28. Rxh6 {[%emt 0:00:34]} Rg7 {[%emt 0:01:46]} 29. g6 {[%emt 0:02:52]} Qc8 {[%emt 0:01:39]} 30. Qh5 {[%emt 0:01:40]} Qg8 {[%emt 0:00:20]} 31. Qxe5 {[%emt 0:00:18]} Rf8 {[%emt 0:01:38]} 32. Rxh7+ {[%emt 0:00:30]} 1-0

[Event "3rd Memorial Warakomska 2019"]
[Site "Suwalki"]
[Date "2019.08.09"]
[Round "6.45"]
[White "Czarniecka, Aleksandra"]
[Black "Szostko, Jakub"]
[Result "0-1"]
[ECO "C45"]
[WhiteElo "2042"]
[BlackElo "2245"]
[Annotator "NA"]
[PlyCount "120"]
[EventDate "2019.08.05"]
[EventType "swiss"]
[EventCountry "POL"]
[SourceTitle "playchess.com"]
[Source "ChessBase"]
[SourceQuality "1"]
[TimeControl "40/5400+30:1800+30"]

1. e4 {[%emt 0:00:00]} e5 {[%emt 0:00:00]} 2. Nf3 {[%emt 0:00:00]} Nc6 {[%emt 0:00:00]} 3. d4 {[%emt 0:00:00]} exd4 {[%emt 0:00:00]} 4. Nxd4 {[%emt 0:00:05]} Bc5 {[%emt 0:00:05]} 5. Be3 {[%emt 0:00:10]} Qf6 {[%emt 0:00:22]} 6. c3 {[%emt 0:00:23]} Nge7 {[%emt 0:00:34]} 7. Bc4 {[%emt 0:00:25]} O-O {[%emt 0:00:37]} 8. O-O {[%emt 0:01:05]} b6 {[%emt 0:00:44]} 9. Qd2 {[%emt 0:01:55]} Qg6 {[%emt 0:02:00]} 10. Nxc6 {[%emt 0:04:56]} Nxc6 {[%emt 0:04:55]} 11. Bxc5 {[%emt 0:03:13]} bxc5 {[%emt 0:00:06]} 12. Qd5 {[%emt 0:12:11]} Rb8 {[%emt 0:05:26]} 13. b3 {[%emt 0:09:25]} Bb7 {[%emt 0:06:51]} 14. Nd2 {[%emt 0:07:07]} d6 {[%emt 0:02:50]} 15. Qd3 {[%emt 0:05:01]} Ne5 {[%emt 0:03:21]} 16. Qe2 {[%emt 0:00:34]} Rbe8 {[%emt 0:08:21]} 17. Rae1 {[%emt 0:05:12]} Kh8 {[%emt 0:03:07]} 18. Ba6 {[%emt 0:08:12]} Ba8 {[%emt 0:02:22]} 19. f4 {[%emt 0:04:51]} Nd7 {[%emt 0:13:21]} 20. Bb5 {[%emt 0:04:46]} Re7 {[%emt 0:01:08]} 21. Bxd7 {[%emt 0:03:15]} Rxd7 {[%emt 0:00:08]} 22. f5 {[%emt 0:05:12]} Qf6 {[%emt 0:01:20]} 23. Rf3 {[%emt 0:01:37]} Re7 {[%emt 0:11:11]} 24. Re3 {[%emt 0:01:41]} Rfe8 {[%emt 0:03:00]} 25. c4 {[%emt 0:05:38]} Re5 {[%emt 0:04:50]} 26. Qg4 g6 {[%emt 0:09:15]} 27. fxg6 {[%emt 0:04:31]} fxg6 {[%emt 0:00:23]} 28. Rf1 {[%emt 0:00:36]} Qg7 {[%emt 0:00:47]} 29. Ref3 {[%emt 0:05:55]} R5e7 {[%emt 0:01:11]} 30. Qh4 {[%emt 0:05:12]} Bxe4 {[%emt 0:05:49]} 31. Nxe4 {[%emt 0:00:36]} Rxe4 {[%emt 0:00:32]} 32. Qxe4 {[%emt 0:00:47]} Rxe4 {[%emt 0:00:12]} 33. Rf8+ {[%emt 0:00:03]} Qg8 {[%emt 0:00:42]} 34. R1f7 {[%emt 0:00:42]} Re1+ {[%emt 0:02:25]} 35. Kf2 {[%emt 0:00:11]} Ra1 {[%emt 0:00:19]} 36. Rxg8+ {[%emt 0:01:40]} Kxg8 {[%emt 0:00:05]} 37. Rxc7 {[%emt 0:00:04]} Rxa2+ {[%emt 0:00:03]} 38. Kg1 {[%emt 0:00:23]} Rb2 {[%emt 0:01:42]} 39. Rxa7 {[%emt 0:00:50]} Rxb3 {[%emt 0:00:04]} 40. Rd7 {[%emt 0:00:00]} Rd3 {[%emt 0:00:00]} 41. Kf2 {[%emt 0:04:06]} Rd4 {[%emt 0:03:18]} 42. h3 {[%emt 0:00:54]} h5 {[%emt 0:02:33]} 43. g3 {[%emt 0:02:00]} g5 {[%emt 0:01:02]} 44. Ke3 {[%emt 0:08:35]} Kf8 {[%emt 0:02:43]} 45. Rh7 {[%emt 0:03:00]} h4 {[%emt 0:00:54]} 46. gxh4 {[%emt 0:01:47]} gxh4 {[%emt 0:00:49]} 47. Rh6 {[%emt 0:00:36]} Ke7 {[%emt 0:00:21]} 48. Rh7+ {[%emt 0:00:11]} Ke6 {[%emt 0:00:16]} 49. Rh6+ {[%emt 0:00:44]} Kd7 {[%emt 0:00:11]} 50. Ke2 {[%emt 0:04:17]} Rxc4 {[%emt 0:00:10]} 51. Kd3 {[%emt 0:00:13]} Rd4+ {[%emt 0:00:34]} 52. Kc3 {[%emt 0:00:14]} Kc6 {[%emt 0:00:21]} 53. Kc2 {[%emt 0:00:19]} c4 {[%emt 0:05:10]} 54. Rh5 {[%emt 0:02:43]} d5 {[%emt 0:01:38]} 55. Rh6+ {[%emt 0:00:04]} Kc5 {[%emt 0:00:11]} 56. Rh8 {[%emt 0:00:16]} Rf4 {[%emt 0:00:51]} 57. Rc8+ {[%emt 0:01:09]} Kd4 {[%emt 0:00:07]} 58. Rh8 {[%emt 0:00:03]} Rf2+ {[%emt 0:00:34]} 59. Kd1 {[%emt 0:04:16]} Kd3 {[%emt 0:00:14]} 60. Ke1 {[%emt 0:00:08]} Re2+ 0-1

[Event "3rd Memorial Warakomska 2019"]
[Site "Suwalki"]
[Date "2019.08.09"]
[Round "6.46"]
[White "Dmochowska, Agnieszka"]
[Black "Szczurek, Krzysztof"]
[Result "1-0"]
[ECO "B96"]
[WhiteElo "2126"]
[BlackElo "2104"]
[Annotator "NA"]
[PlyCount "93"]
[EventDate "2019.08.05"]
[EventType "swiss"]
[EventCountry "POL"]
[SourceTitle "playchess.com"]
[Source "ChessBase"]
[SourceQuality "1"]
[TimeControl "40/5400+30:1800+30"]

1. e4 {[%emt 0:01:20]} c5 {[%emt 0:00:00]} 2. Nf3 {[%emt 0:00:06]} d6 {[%emt 0:00:00]} 3. d4 {[%emt 0:00:04]} cxd4 {[%emt 0:00:00]} 4. Nxd4 {[%emt 0:00:03]} Nf6 {[%emt 0:00:00]} 5. Nc3 {[%emt 0:00:05]} a6 {[%emt 0:00:04]} 6. Bg5 {[%emt 0:00:09]} e6 {[%emt 0:00:12]} 7. f4 {[%emt 0:00:05]} h6 {[%emt 0:00:35]} 8. Bh4 {[%emt 0:00:08]} Qb6 {[%emt 0:00:06]} 9. a3 {[%emt 0:00:09]} Be7 {[%emt 0:00:12]} 10. Bf2 {[%emt 0:00:07]} Qc7 {[%emt 0:00:10]} 11. Qf3 {[%emt 0:01:52]} Nc6 {[%emt 0:00:59]} 12. O-O-O {[%emt 0:00:17]} Nxd4 {[%emt 0:02:42]} 13. Bxd4 {[%emt 0:01:02]} Qc6 {[%emt 0:07:33]} 14. Re1 {[%emt 0:07:45]} b5 {[%emt 0:05:38]} 15. g4 {[%emt 0:03:19]} Bb7 {[%emt 0:00:58]} 16. Bd3 {[%emt 0:05:50]} O-O-O {[%emt 0:07:06]} 17. Kb1 {[%emt 0:16:43]} Kb8 {[%emt 0:02:41]} 18. g5 {[%emt 0:09:31]} Ne8 {[%emt 0:00:22]} 19. h4 {[%emt 0:00:57]} Ka8 {[%emt 0:03:28]} 20. Qe2 {[%emt 0:06:53]} f6 {[%emt 0:04:38]} 21. gxh6 {[%emt 0:13:07]} Rxh6 {[%emt 0:04:18]} 22. f5 {[%emt 0:02:51]} Nc7 {[%emt 0:02:02]} 23. Be3 {[%emt 0:00:46]} Rh7 {[%emt 0:00:45]} 24. fxe6 {[%emt 0:00:19]} Rdh8 {[%emt 0:00:53]} 25. Nd5 {[%emt 0:02:44]} g6 {[%emt 0:02:17]} 26. Nb4 {[%emt 0:03:57]} Qe8 {[%emt 0:00:12]} 27. Bf2 {[%emt 0:03:34]} Nxe6 {[%emt 0:02:46]} 28. c4 {[%emt 0:00:30]} Qb8 {[%emt 0:03:30]} 29. cxb5 {[%emt 0:01:01]} Nf4 {[%emt 0:00:05]} 30. Qd2 {[%emt 0:01:04]} Nxd3 {[%emt 0:00:18]} 31. Nxd3 {[%emt 0:01:26]} f5 {[%emt 0:01:18]} 32. Nb4 {[%emt 0:10:55]} Bxe4+ {[%emt 0:09:19]} 33. Rxe4 {[%emt 0:00:07]} fxe4 {[%emt 0:00:04]} 34. bxa6 {[%emt 0:00:24]} Qb5 {[%emt 0:00:58]} 35. Qd4 {[%emt 0:00:58]} e3 {[%emt 0:03:51]} 36. Qe4+ {[%emt 0:03:21]} Kb8 {[%emt 0:01:31]} 37. a7+ {[%emt 0:01:29]} Kxa7 {[%emt 0:01:29]} 38. Qxe3+ {[%emt 0:01:44]} Kb8 {[%emt 0:01:18]} 39. Qa7+ {[%emt 0:01:38]} Kc8 {[%emt 0:00:10]} 40. Bb6 {[%emt 0:00:00]} Bg5 {[%emt 0:00:00]} 41. Qa8+ {[%emt 0:01:47]} Kd7 {[%emt 0:03:14]} 42. Qb7+ {[%emt 0:00:11]} Ke6 {[%emt 0:00:46]} 43. Re1+ {[%emt 0:00:39]} Kf5 {[%emt 0:00:24]} 44. Qe4+ {[%emt 0:02:19]} Kf6 {[%emt 0:00:05]} 45. hxg5+ {[%emt 0:03:28]} Kxg5 {[%emt 0:00:26]} 46. Rg1+ {[%emt 0:00:32]} Kh6 {[%emt 0:00:12]} 47. Qxg6# {[%emt 0:00:06]} 1-0

[Event "3rd Memorial Warakomska 2019"]
[Site "Suwalki"]
[Date "2019.08.09"]
[Round "6.47"]
[White "Leskiewicz, Ignacy"]
[Black "Bommini Mounika Akshaya"]
[Result "1-0"]
[ECO "C95"]
[WhiteElo "2120"]
[BlackElo "2063"]
[Annotator "NA"]
[PlyCount "89"]
[EventDate "2019.08.05"]
[EventType "swiss"]
[EventCountry "POL"]
[SourceTitle "playchess.com"]
[Source "ChessBase"]
[SourceQuality "1"]
[TimeControl "40/5400+30:1800+30"]

1. e4 {[%emt 0:00:00]} e5 {[%emt 0:00:00]} 2. Nf3 {[%emt 0:00:00]} Nc6 {[%emt 0:00:00]} 3. Bb5 {[%emt 0:00:00]} a6 {[%emt 0:00:00]} 4. Ba4 {[%emt 0:00:00]} Nf6 {[%emt 0:00:00]} 5. O-O {[%emt 0:00:00]} Be7 {[%emt 0:00:00]} 6. Re1 {[%emt 0:00:37]} b5 {[%emt 0:00:05]} 7. Bb3 {[%emt 0:00:06]} d6 {[%emt 0:00:03]} 8. c3 {[%emt 0:01:41]} O-O {[%emt 0:00:07]} 9. h3 {[%emt 0:03:32]} Nb8 {[%emt 0:00:06]} 10. d4 {[%emt 0:08:31]} Nbd7 {[%emt 0:00:06]} 11. Nbd2 {[%emt 0:03:06]} Bb7 {[%emt 0:00:06]} 12. Bc2 {[%emt 0:03:39]} Re8 {[%emt 0:00:13]} 13. b3 {[%emt 0:08:32]} Bf8 {[%emt 0:06:56]} 14. Bb2 {[%emt 0:02:24]} c6 {[%emt 0:01:23]} 15. a4 {[%emt 0:17:26]} g6 {[%emt 0:04:28]} 16. dxe5 {[%emt 0:11:14]} dxe5 {[%emt 0:01:12]} 17. Qe2 {[%emt 0:03:55]} Nh5 {[%emt 0:02:19]} 18. g3 {[%emt 0:01:31]} Qc7 {[%emt 0:04:01]} 19. Red1 {[%emt 0:03:56]} Nc5 {[%emt 0:08:10]} 20. axb5 {[%emt 0:09:21]} cxb5 {[%emt 0:05:44]} 21. b4 Ne6 22. Bb3 {[%emt 0:04:31]} Bc8 {[%emt 0:23:52]} 23. Kh2 {[%emt 0:04:14]} f6 {[%emt 0:06:57]} 24. Nf1 {[%emt 0:02:00]} Kh8 {[%emt 0:04:03]} 25. Ne3 {[%emt 0:00:57]} Qg7 {[%emt 0:01:18]} 26. Nd5 {[%emt 0:03:29]} Rb8 {[%emt 0:00:50]} 27. c4 {[%emt 0:01:16]} Nc7 {[%emt 0:06:45]} 28. Nxc7 {[%emt 0:01:26]} Qxc7 {[%emt 0:00:06]} 29. c5 {[%emt 0:00:40]} Qg7 {[%emt 0:01:58]} 30. Rd3 {[%emt 0:02:39]} Qh6 {[%emt 0:02:00]} 31. Qf1 {[%emt 0:01:08]} g5 {[%emt 0:05:48]} 32. Rad1 {[%emt 0:01:14]} Ng7 {[%emt 0:02:51]} 33. Bc1 {[%emt 0:00:33]} Qh5 {[%emt 0:01:05]} 34. Ng1 {[%emt 0:02:29]} Ne6 {[%emt 0:03:42]} 35. Qe2 {[%emt 0:00:35]} Qh6 {[%emt 0:01:28]} 36. Be3 {[%emt 0:00:24]} a5 {[%emt 0:01:09]} 37. c6 {[%emt 0:00:44]} Bxb4 {[%emt 0:01:43]} 38. Bxe6 {[%emt 0:00:32]} Bxe6 {[%emt 0:00:13]} 39. c7 {[%emt 0:00:00]} Rbc8 {[%emt 0:02:06]} 40. Rd8 {[%emt 0:00:00]} Qf8 {[%emt 0:00:00]} 41. Bb6 {[%emt 0:08:30]} Bc4 {[%emt 0:10:49]} 42. Rxc8 {[%emt 0:00:18]} Rxc8 43. Qg4 Be7 {[%emt 0:08:03]} 44. Qxc8 {[%emt 0:02:28]} Qxc8 {[%emt 0:01:45]} 45. Rd8+ {[%emt 0:00:36]} 1-0

[Event "3rd Memorial Warakomska 2019"]
[Site "Suwalki"]
[Date "2019.08.10"]
[Round "7.1"]
[White "Harsha Bharathakoti"]
[Black "Markowski, Tomasz"]
[Result "1-0"]
[ECO "E12"]
[WhiteElo "2486"]
[BlackElo "2537"]
[Annotator "ChessBase"]
[PlyCount "63"]
[EventDate "2019.08.05"]
[EventType "swiss"]
[EventCountry "POL"]
[SourceTitle "playchess.com"]
[Source "ChessBase"]
[SourceQuality "1"]
[TimeControl "40/5400+30:1800+30"]

1. d4 {[%emt 0:00:41]} Nf6 {[%emt 0:00:00]} 2. c4 {[%emt 0:00:07]} e6 {[%emt 0:00:00]} 3. Nf3 {[%emt 0:00:05]} b6 {[%emt 0:00:00]} 4. a3 {[%emt 0:00:39]} Bb7 {[%emt 0:00:00]} 5. Nc3 {[%emt 0:00:08]} Ne4 {[%emt 0:00:01]} 6. Nxe4 {[%emt 0:01:57]} Bxe4 {[%emt 0:00:06]} 7. e3 {[%emt 0:10:17]} c5 {[%emt 0:00:21]} 8. Bd3 {[%emt 0:03:35]} Bb7 {[%emt 0:00:11]} 9. O-O {[%emt 0:01:18]} Be7 {[%emt 0:00:12]} 10. b3 {[%emt 0:04:25]} d6 {[%emt 0:01:33]} 11. Bb2 {[%emt 0:01:52]} Nd7 {[%emt 0:00:32]} 12. Qe2 {[%emt 0:06:05]} O-O {[%emt 0:02:35]} 13. e4 {[%emt 0:02:53]} cxd4 {[%emt 0:00:43]} 14. Nxd4 {[%emt 0:00:16]} a6 {[%emt 0:03:57]} 15. f4 {[%emt 0:09:46]} Bf6 {[%emt 0:02:39]} 16. Rad1 {[%emt 0:03:40]} Qc7 {[%emt 0:02:54]} 17. b4 {[%emt 0:04:43]} Rac8 {[%emt 0:02:34]} 18. Qh5 {[%emt 0:02:20]} h6 {[%emt 0:19:57]} 19. Rf3 {[%emt 0:15:25]} b5 {[%emt 0:07:11]} 20. Rg3 {[%emt 0:00:47]} Kh8 {[%emt 0:00:26]} 21. c5 {[%emt 0:14:30]} Nxc5 {[%emt 0:33:23]} 22. Nxb5 {[%emt 0:09:16]} Qd8 {[%emt 0:04:48]} 23. Nxd6 {[%emt 0:03:54]} Bxb2 {[%emt 0:00:56]} 24. bxc5 {[%emt 0:00:04]} Qc7 {[%emt 0:04:32]} 25. Nxc8 {[%emt 0:00:46]} Rxc8 {[%emt 0:00:11]} 26. Qe2 {[%emt 0:01:30]} Qxc5+ {[%emt 0:03:21]} 27. Kh1 {[%emt 0:00:08]} Qxa3 {[%emt 0:00:23]} 28. Bc4 {[%emt 0:02:12]} Bc3 {[%emt 0:04:17]} 29. Rb1 {[%emt 0:00:08]} Ba8 {[%emt 0:05:40]} 30. Qd3 {[%emt 0:00:59]} Bb2 {[%emt 0:00:52]} 31. Qxa3 {[%emt 0:00:32]} Bxa3 {[%emt 0:00:01]} 32. Bxa6 {[%emt 0:00:18]} 1-0